[Event "Titled Tuesday Blitz November 15 Late 2022"]
[White "Gurevich, Dmitry"]
[Black "Garcia Pantoja, Roberto"]
[WhiteFideId "2000407"]
[BlackFideId "3509265"]
[WhiteElo "2506"]
[BlackElo "2524"]
[Result "1-0"]
[Round "11"]
[TimeControl "180+1"]
[Date "2022.11.15"]
[WhiteClock "0:00:56"]
[BlackClock "0:00:28"]

1. d4 {[%clk 0:03:00]}  Nf6 {[%clk 0:02:59]} 2. c4 {[%clk 0:03:00]}  g6 {[%clk 0:02:59]} 3. Nc3 {[%clk 0:03:00]}  Bg7 {[%clk 0:02:59]} 4. e4 {[%clk 0:03:00]}  O-O {[%clk 0:03:00]} 5. Nf3 {[%clk 0:02:59]}  d6 {[%clk 0:03:01]} 6. Be2 {[%clk 0:02:59]}  e5 {[%clk 0:03:00]} 7. O-O {[%clk 0:02:59]}  Nc6 {[%clk 0:03:00]} 8. d5 {[%clk 0:02:59]}  Ne7 {[%clk 0:03:01]} 9. Ne1 {[%clk 0:02:59]}  Nd7 {[%clk 0:03:00]} 10. Be3 {[%clk 0:03:00]}  f5 {[%clk 0:03:00]} 11. f3 {[%clk 0:03:00]}  f4 {[%clk 0:03:01]} 12. Bf2 {[%clk 0:03:01]}  g5 {[%clk 0:03:01]} 13. Nb5 {[%clk 0:03:01]}  b6 {[%clk 0:02:54]} 14. b4 {[%clk 0:03:00]}  Rf6 {[%clk 0:02:48]} 15. a4 {[%clk 0:02:53]}  a6 {[%clk 0:02:41]} 16. Nc3 {[%clk 0:02:51]}  a5 {[%clk 0:02:41]} 17. bxa5 {[%clk 0:02:50]}  Rxa5 {[%clk 0:02:41]} 18. Nd3 {[%clk 0:02:48]}  Rh6 {[%clk 0:02:36]} 19. Nb5 {[%clk 0:02:46]}  Nf6 {[%clk 0:02:32]} 20. Be1 {[%clk 0:02:44]}  Ra8 {[%clk 0:02:29]} 21. a5 {[%clk 0:02:42]}  bxa5 {[%clk 0:02:22]} 22. Rxa5 {[%clk 0:02:41]}  Rb8 {[%clk 0:02:04]} 23. Ra7 {[%clk 0:02:34]}  Bb7 {[%clk 0:01:57]} 24. Ba5 {[%clk 0:02:28]}  Ne8 {[%clk 0:01:49]} 25. c5 {[%clk 0:02:18]}  Nc8 {[%clk 0:01:46]} 26. cxd6 {[%clk 0:02:17]}  Nexd6 {[%clk 0:01:36]} 27. Bxc7 {[%clk 0:02:13]}  Qd7 {[%clk 0:01:34]} 28. Nc5 {[%clk 0:01:58]}  Qe7 {[%clk 0:01:20]} 29. Bxb8 {[%clk 0:01:49]}  Nxb5 {[%clk 0:01:15]} 30. d6 {[%clk 0:01:40]}  Ncxd6 {[%clk 0:01:04]} 31. Nxb7 {[%clk 0:01:36]}  Nd4 {[%clk 0:01:00]} 32. Bxd6 {[%clk 0:01:32]}  Rxd6 {[%clk 0:00:59]} 33. Bc4+ {[%clk 0:01:30]}  Kh8 {[%clk 0:00:54]} 34. Ra8+ {[%clk 0:01:27]}  Bf8 {[%clk 0:00:53]} 35. Nxd6 {[%clk 0:01:26]}  Qxd6 {[%clk 0:00:54]} 36. Qa4 {[%clk 0:01:23]}  Kg7 {[%clk 0:00:47]} 37. Rb1 {[%clk 0:01:11]}  Be7 {[%clk 0:00:43]} 38. Ra7 {[%clk 0:01:04]}  Qc5 {[%clk 0:00:41]} 39. Rxe7+ {[%clk 0:01:03]}  Qxe7 {[%clk 0:00:42]} 40. Qb4 {[%clk 0:01:01]}  Qd8 {[%clk 0:00:32]} 41. Qb7+ {[%clk 0:00:59]}  Kh6 {[%clk 0:00:28]} 42. Qb6+ {[%clk 0:00:56]} 1-0


[Site "https://www.chess.com"]

[Event "Titled Tuesday Blitz November 15 Late 2022"]
[White "Hoffmann, Asa"]
[Black "Vlassov, Nikolai"]
[WhiteFideId "2001470"]
[BlackFideId "4103360"]
[WhiteElo "2117"]
[BlackElo "2324"]
[Result "1/2-1/2"]
[Round "11"]
[TimeControl "180+1"]
[Date "2022.11.16"]
[WhiteClock "0:00:38"]
[BlackClock "0:00:04"]

1. d4 {[%clk 0:02:58]}  Nf6 {[%clk 0:02:59]} 2. Bg5 {[%clk 0:02:51]}  e6 {[%clk 0:02:58]} 3. Nd2 {[%clk 0:02:50]}  h6 {[%clk 0:02:58]} 4. Bh4 {[%clk 0:02:50]}  c5 {[%clk 0:02:57]} 5. e3 {[%clk 0:02:50]}  b6 {[%clk 0:02:58]} 6. Ngf3 {[%clk 0:02:49]}  Bb7 {[%clk 0:02:58]} 7. Bd3 {[%clk 0:02:49]}  g5 {[%clk 0:02:57]} 8. Bg3 {[%clk 0:02:48]}  g4 {[%clk 0:02:58]} 9. Nh4 {[%clk 0:02:47]}  Be7 {[%clk 0:02:52]} 10. O-O {[%clk 0:02:45]}  Rg8 {[%clk 0:02:50]} 11. e4 {[%clk 0:02:37]}  Nh5 {[%clk 0:02:40]} 12. Nhf3 {[%clk 0:02:29]}  gxf3 {[%clk 0:02:38]} 13. Qxf3 {[%clk 0:02:29]}  Nf6 {[%clk 0:02:26]} 14. c3 {[%clk 0:02:26]}  cxd4 {[%clk 0:02:26]} 15. cxd4 {[%clk 0:02:25]}  Nc6 {[%clk 0:02:25]} 16. d5 {[%clk 0:02:24]}  Nd4 {[%clk 0:02:20]} 17. Qe3 {[%clk 0:02:20]}  Bc5 {[%clk 0:02:19]} 18. Qxh6 {[%clk 0:02:17]}  Ng4 {[%clk 0:02:10]} 19. Qh7 {[%clk 0:02:14]}  Qg5 {[%clk 0:02:08]} 20. Nf3 {[%clk 0:02:09]}  Nxf3+ {[%clk 0:02:06]} 21. gxf3 {[%clk 0:02:09]}  Nf6 {[%clk 0:01:57]} 22. Qh3 {[%clk 0:02:04]}  Nh5 {[%clk 0:01:49]} 23. Rad1 {[%clk 0:01:50]}  O-O-O {[%clk 0:01:39]} 24. Bb5 {[%clk 0:01:44]}  Nf4 {[%clk 0:01:26]} 25. Qg4 {[%clk 0:01:32]}  Qxg4 {[%clk 0:01:25]} 26. fxg4 {[%clk 0:01:31]}  Rxg4 {[%clk 0:01:25]} 27. Rc1 {[%clk 0:01:28]}  Kb8 {[%clk 0:01:19]} 28. Rfd1 {[%clk 0:01:26]}  exd5 {[%clk 0:01:15]} 29. exd5 {[%clk 0:01:25]}  Bd6 {[%clk 0:01:14]} 30. Re1 {[%clk 0:01:20]}  Bxd5 {[%clk 0:01:12]} 31. Rcd1 {[%clk 0:01:15]}  Nh3+ {[%clk 0:01:06]} 32. Kf1 {[%clk 0:01:15]}  Bxg3 {[%clk 0:01:06]} 33. hxg3 {[%clk 0:01:06]}  Bc4+ {[%clk 0:00:50]} 34. Bxc4 {[%clk 0:01:02]}  Rxc4 {[%clk 0:00:51]} 35. Rd5 {[%clk 0:01:01]}  Rc2 {[%clk 0:00:44]} 36. Re2 {[%clk 0:01:00]}  Rxe2 {[%clk 0:00:38]} 37. Kxe2 {[%clk 0:01:00]}  Ng1+ {[%clk 0:00:38]} 38. Ke3 {[%clk 0:00:59]}  Re8+ {[%clk 0:00:37]} 39. Kf4 {[%clk 0:00:58]}  Kc7 {[%clk 0:00:37]} 40. Rf5 {[%clk 0:00:57]}  Ne2+ {[%clk 0:00:36]} 41. Kg5 {[%clk 0:00:56]}  Re7 {[%clk 0:00:30]} 42. Kf6 {[%clk 0:00:53]}  Kd8 {[%clk 0:00:29]} 43. g4 {[%clk 0:00:50]}  Ke8 {[%clk 0:00:24]} 44. g5 {[%clk 0:00:50]}  Re6+ {[%clk 0:00:20]} 45. Kg7 {[%clk 0:00:50]}  Nd4 {[%clk 0:00:20]} 46. Rxf7 {[%clk 0:00:48]}  Re7 {[%clk 0:00:16]} 47. g6 {[%clk 0:00:47]}  Ne6+ {[%clk 0:00:15]} 48. Kf6 {[%clk 0:00:46]}  Rxf7+ {[%clk 0:00:15]} 49. gxf7+ {[%clk 0:00:45]}  Kf8 {[%clk 0:00:15]} 50. f4 {[%clk 0:00:45]}  Nd8 {[%clk 0:00:15]} 51. Ke5 {[%clk 0:00:44]}  Nxf7+ {[%clk 0:00:14]} 52. Kd5 {[%clk 0:00:44]}  Ke7 {[%clk 0:00:14]} 53. f5 {[%clk 0:00:44]}  Nh6 {[%clk 0:00:14]} 54. f6+ {[%clk 0:00:43]}  Kxf6 {[%clk 0:00:13]} 55. Kd6 {[%clk 0:00:42]}  Nf5+ {[%clk 0:00:12]} 56. Kxd7 {[%clk 0:00:42]}  Ke5 {[%clk 0:00:12]} 57. Kc6 {[%clk 0:00:42]}  Kd4 {[%clk 0:00:12]} 58. Kb7 {[%clk 0:00:42]}  Nd6+ {[%clk 0:00:09]} 59. Kxa7 {[%clk 0:00:42]}  Kc5 {[%clk 0:00:09]} 60. Ka6 {[%clk 0:00:42]}  Ne8 {[%clk 0:00:07]} 61. a4 {[%clk 0:00:42]}  Kc6 {[%clk 0:00:07]} 62. b4 {[%clk 0:00:40]}  Nc7+ {[%clk 0:00:08]} 63. Ka7 {[%clk 0:00:40]}  Nd5 {[%clk 0:00:08]} 64. b5+ {[%clk 0:00:39]}  Kc7 {[%clk 0:00:08]} 65. Ka6 {[%clk 0:00:39]}  Nb4+ {[%clk 0:00:06]} 66. Ka7 {[%clk 0:00:39]}  Nd5 {[%clk 0:00:05]} 67. Ka6 {[%clk 0:00:38]}  Nb4+ {[%clk 0:00:04]} 68. Ka7 {[%clk 0:00:38]}  Nd5 {[%clk 0:00:04]} 1/2-1/2


[Site "https://www.chess.com"]

[Event "Titled Tuesday Blitz November 15 Late 2022"]
[White "Ibarra Jerez, Jose Carlos"]
[Black "Kamsky, Gata"]
[WhiteFideId "2226332"]
[BlackFideId "2000024"]
[WhiteElo "2638"]
[BlackElo "2666"]
[Result "1-0"]
[Round "11"]
[TimeControl "180+1"]
[Date "2022.11.15"]
[WhiteClock "0:00:05"]
[BlackClock "0:00:10"]

1. e4 {[%clk 0:03:00]}  c6 {[%clk 0:02:53]} 2. Nf3 {[%clk 0:03:00]}  d5 {[%clk 0:02:53]} 3. d3 {[%clk 0:03:01]}  Bg4 {[%clk 0:02:49]} 4. h3 {[%clk 0:03:01]}  Bxf3 {[%clk 0:02:49]} 5. Qxf3 {[%clk 0:03:02]}  e6 {[%clk 0:02:49]} 6. g3 {[%clk 0:03:03]}  Bc5 {[%clk 0:02:46]} 7. Bg2 {[%clk 0:03:03]}  Nd7 {[%clk 0:02:46]} 8. O-O {[%clk 0:03:03]}  h5 {[%clk 0:02:46]} 9. exd5 {[%clk 0:03:01]}  cxd5 {[%clk 0:02:45]} 10. c4 {[%clk 0:03:02]}  Ngf6 {[%clk 0:02:26]} 11. Nc3 {[%clk 0:03:01]}  h4 {[%clk 0:02:20]} 12. g4 {[%clk 0:03:00]}  Nb6 {[%clk 0:01:16]} 13. g5 {[%clk 0:02:52]}  Nfd7 {[%clk 0:01:04]} 14. cxd5 {[%clk 0:02:50]}  O-O {[%clk 0:00:58]} 15. dxe6 {[%clk 0:02:42]}  Ne5 {[%clk 0:00:57]} 16. Qh5 {[%clk 0:02:34]}  g6 {[%clk 0:00:54]} 17. Qxh4 {[%clk 0:02:27]}  fxe6 {[%clk 0:00:53]} 18. Qe4 {[%clk 0:02:23]}  Rf5 {[%clk 0:00:51]} 19. Bf4 {[%clk 0:02:09]}  Nxd3 {[%clk 0:00:48]} 20. Qxe6+ {[%clk 0:02:05]}  Kg7 {[%clk 0:00:44]} 21. Bg3 {[%clk 0:01:52]}  Qe8 {[%clk 0:00:29]} 22. Qxe8 {[%clk 0:01:25]}  Rxe8 {[%clk 0:00:29]} 23. Ne4 {[%clk 0:01:26]}  Rxe4 {[%clk 0:00:20]} 24. Bxe4 {[%clk 0:01:25]}  Rxg5 {[%clk 0:00:21]} 25. Kh2 {[%clk 0:01:21]}  Nxb2 {[%clk 0:00:20]} 26. h4 {[%clk 0:00:57]}  Rh5 {[%clk 0:00:19]} 27. Bf3 {[%clk 0:00:57]}  Rf5 {[%clk 0:00:19]} 28. Be4 {[%clk 0:00:57]}  Rh5 {[%clk 0:00:19]} 29. Rac1 {[%clk 0:00:44]}  N6c4 {[%clk 0:00:18]} 30. Rc2 {[%clk 0:00:40]}  b5 {[%clk 0:00:18]} 31. Re1 {[%clk 0:00:23]}  Bd4 {[%clk 0:00:17]} 32. Bf3 {[%clk 0:00:23]}  Rf5 {[%clk 0:00:16]} 33. Bg4 {[%clk 0:00:22]}  Rf6 {[%clk 0:00:16]} 34. Re7+ {[%clk 0:00:22]}  Rf7 {[%clk 0:00:16]} 35. Re4 {[%clk 0:00:15]}  Bf6 {[%clk 0:00:15]} 36. h5 {[%clk 0:00:14]}  Nd3 {[%clk 0:00:14]} 37. hxg6 {[%clk 0:00:13]}  Kxg6 {[%clk 0:00:14]} 38. a4 {[%clk 0:00:12]}  a6 {[%clk 0:00:14]} 39. axb5 {[%clk 0:00:13]}  axb5 {[%clk 0:00:14]} 40. Re6 {[%clk 0:00:11]}  Kg5 {[%clk 0:00:14]} 41. Bh3 {[%clk 0:00:09]}  Nf4 {[%clk 0:00:13]} 42. Bxf4+ {[%clk 0:00:06]}  Kxf4 {[%clk 0:00:13]} 43. Rc6 {[%clk 0:00:07]}  Bd4 {[%clk 0:00:13]} 44. Re2 {[%clk 0:00:07]}  Ne5 {[%clk 0:00:12]} 45. Rd6 {[%clk 0:00:06]}  Nf3+ {[%clk 0:00:12]} 46. Kh1 {[%clk 0:00:06]}  Rg7 {[%clk 0:00:13]} 47. Rxd4+ {[%clk 0:00:04]}  Nxd4 {[%clk 0:00:12]} 48. Re1 {[%clk 0:00:04]}  Nf3 {[%clk 0:00:12]} 49. Rb1 {[%clk 0:00:03]}  Rh7 {[%clk 0:00:13]} 50. Kg2 {[%clk 0:00:03]}  Rg7+ {[%clk 0:00:11]} 51. Kh1 {[%clk 0:00:04]}  Rh7 {[%clk 0:00:12]} 52. Rb4+ {[%clk 0:00:03]}  Ke5 {[%clk 0:00:12]} 53. Rxb5+ {[%clk 0:00:04]}  Kf4 {[%clk 0:00:12]} 54. Rb4+ {[%clk 0:00:04]}  Ke5 {[%clk 0:00:12]} 55. Kg2 {[%clk 0:00:04]}  Ne1+ {[%clk 0:00:12]} 56. Kg3 {[%clk 0:00:04]}  Rg7+ {[%clk 0:00:13]} 57. Bg4 {[%clk 0:00:04]}  Nd3 {[%clk 0:00:12]} 58. f4+ {[%clk 0:00:04]}  Kd5 {[%clk 0:00:11]} 59. Ra4 {[%clk 0:00:04]}  Nf2 {[%clk 0:00:10]} 60. Kxf2 {[%clk 0:00:04]}  Rxg4 {[%clk 0:00:11]} 61. Kf3 {[%clk 0:00:05]}  Rg1 {[%clk 0:00:11]} 62. Ra6 {[%clk 0:00:04]}  Kd4 {[%clk 0:00:09]} 63. Rd6+ {[%clk 0:00:03]}  Kc5 {[%clk 0:00:09]} 64. Rd8 {[%clk 0:00:04]}  Kc6 {[%clk 0:00:09]} 65. f5 {[%clk 0:00:04]}  Kc7 {[%clk 0:00:10]} 66. Rd2 {[%clk 0:00:04]}  Rg7 {[%clk 0:00:09]} 67. Kf4 {[%clk 0:00:04]}  Rd7 {[%clk 0:00:10]} 68. Rxd7+ {[%clk 0:00:04]}  Kxd7 {[%clk 0:00:10]} 69. Kg5 {[%clk 0:00:05]}  Ke7 {[%clk 0:00:10]} 70. Kg6 {[%clk 0:00:05]} 1-0


[Site "https://www.chess.com"]

[Event "Titled Tuesday Blitz November 15 Late 2022"]
[White "Janaszak, Dawid"]
[Black "Kuzmicz, Krystian"]
[WhiteFideId "1119206"]
[BlackFideId "1119125"]
[WhiteElo "2226"]
[BlackElo "2380"]
[Result "1-0"]
[Round "11"]
[TimeControl "180+1"]
[Date "2022.11.15"]
[WhiteClock "0:00:11"]
[BlackClock "0:00:05"]

1. e4 {[%clk 0:03:00]}  c5 {[%clk 0:03:00]} 2. Nc3 {[%clk 0:03:00]}  a6 {[%clk 0:03:00]} 3. d4 {[%clk 0:02:59]}  cxd4 {[%clk 0:02:59]} 4. Qxd4 {[%clk 0:03:00]}  Nc6 {[%clk 0:02:59]} 5. Qd2 {[%clk 0:03:00]}  g6 {[%clk 0:02:59]} 6. b3 {[%clk 0:02:59]}  Nf6 {[%clk 0:02:57]} 7. Bb2 {[%clk 0:02:59]}  Bg7 {[%clk 0:02:57]} 8. O-O-O {[%clk 0:02:59]}  O-O {[%clk 0:02:55]} 9. f3 {[%clk 0:02:58]}  d6 {[%clk 0:02:55]} 10. h4 {[%clk 0:02:57]}  Be6 {[%clk 0:02:52]} 11. Nge2 {[%clk 0:02:57]}  a5 {[%clk 0:02:49]} 12. Nf4 {[%clk 0:02:51]}  Bd7 {[%clk 0:02:39]} 13. h5 {[%clk 0:02:50]}  Ne5 {[%clk 0:02:37]} 14. hxg6 {[%clk 0:02:47]}  fxg6 {[%clk 0:02:29]} 15. a4 {[%clk 0:02:43]}  Qe8 {[%clk 0:02:19]} 16. Nfd5 {[%clk 0:02:41]}  Nxd5 {[%clk 0:02:17]} 17. Nxd5 {[%clk 0:02:41]}  Qf7 {[%clk 0:02:16]} 18. Nb6 {[%clk 0:02:23]}  Rad8 {[%clk 0:02:08]} 19. Nxd7 {[%clk 0:02:20]}  Rxd7 {[%clk 0:02:04]} 20. Qxa5 {[%clk 0:02:12]}  Rc8 {[%clk 0:02:03]} 21. Kb1 {[%clk 0:01:49]}  Rdc7 {[%clk 0:02:00]} 22. Rc1 {[%clk 0:01:29]}  Kh8 {[%clk 0:01:49]} 23. Qd5 {[%clk 0:01:27]}  Qf8 {[%clk 0:01:48]} 24. Bb5 {[%clk 0:01:18]}  Bh6 {[%clk 0:01:42]} 25. Rxh6 {[%clk 0:01:10]}  Qxh6 {[%clk 0:01:41]} 26. g3 {[%clk 0:01:11]}  Qh2 {[%clk 0:01:04]} 27. Bxe5+ {[%clk 0:01:08]}  dxe5 {[%clk 0:01:04]} 28. Qxe5+ {[%clk 0:01:09]}  Kg8 {[%clk 0:01:03]} 29. Bc4+ {[%clk 0:01:05]}  Rxc4 {[%clk 0:01:01]} 30. bxc4 {[%clk 0:01:06]}  Rc6 {[%clk 0:01:00]} 31. c5 {[%clk 0:01:02]}  Qd2 {[%clk 0:00:54]} 32. Qd5+ {[%clk 0:01:01]}  Qxd5 {[%clk 0:00:53]} 33. exd5 {[%clk 0:01:02]}  Rxc5 {[%clk 0:00:54]} 34. c4 {[%clk 0:01:02]}  Ra5 {[%clk 0:00:54]} 35. Kb2 {[%clk 0:01:01]}  Rxa4 {[%clk 0:00:54]} 36. Kb3 {[%clk 0:01:00]}  Ra8 {[%clk 0:00:54]} 37. Kb4 {[%clk 0:00:59]}  Kf7 {[%clk 0:00:54]} 38. Kb5 {[%clk 0:00:59]}  Ra3 {[%clk 0:00:47]} 39. c5 {[%clk 0:00:50]}  Ke8 {[%clk 0:00:47]} 40. Kb6 {[%clk 0:00:46]}  Rb3+ {[%clk 0:00:31]} 41. Kc7 {[%clk 0:00:45]}  h5 {[%clk 0:00:26]} 42. Re1 {[%clk 0:00:39]}  Kf7 {[%clk 0:00:16]} 43. Kd7 {[%clk 0:00:33]}  Rxf3 {[%clk 0:00:10]} 44. Rxe7+ {[%clk 0:00:33]}  Kf6 {[%clk 0:00:10]} 45. d6 {[%clk 0:00:33]}  Rc3 {[%clk 0:00:10]} 46. Ke8 {[%clk 0:00:23]}  Rxc5 {[%clk 0:00:07]} 47. d7 {[%clk 0:00:18]}  Rd5 {[%clk 0:00:08]} 48. d8=Q {[%clk 0:00:14]}  Rxd8+ {[%clk 0:00:08]} 49. Kxd8 {[%clk 0:00:15]}  Kf5 {[%clk 0:00:07]} 50. Rxb7 {[%clk 0:00:14]}  Kg4 {[%clk 0:00:06]} 51. Rg7 {[%clk 0:00:12]}  g5 {[%clk 0:00:05]} 52. Ke7 {[%clk 0:00:11]} 1-0


[Site "https://www.chess.com"]

[Event "Titled Tuesday Blitz November 15 Late 2022"]
[White "Kaufman, Raymond"]
[Black "Adewumi, Tanitoluwa"]
[WhiteFideId "2015056"]
[BlackFideId "30966396"]
[WhiteElo "2321"]
[BlackElo "2530"]
[Result "1-0"]
[Round "11"]
[TimeControl "180+1"]
[Date "2022.11.16"]
[WhiteClock "0:01:05"]
[BlackClock "0:00:01"]

1. e4 {[%clk 0:02:59]}  c5 {[%clk 0:02:50]} 2. Nf3 {[%clk 0:02:59]}  e6 {[%clk 0:02:49]} 3. d4 {[%clk 0:02:58]}  cxd4 {[%clk 0:02:47]} 4. Nxd4 {[%clk 0:02:59]}  Nc6 {[%clk 0:02:47]} 5. Nc3 {[%clk 0:02:58]}  Qc7 {[%clk 0:02:45]} 6. g4 {[%clk 0:02:55]}  a6 {[%clk 0:02:45]} 7. Be3 {[%clk 0:02:55]}  b5 {[%clk 0:02:43]} 8. Nxc6 {[%clk 0:02:53]}  dxc6 {[%clk 0:02:44]} 9. Qf3 {[%clk 0:02:53]}  e5 {[%clk 0:02:44]} 10. O-O-O {[%clk 0:02:46]}  Nf6 {[%clk 0:02:41]} 11. g5 {[%clk 0:02:37]}  Nd7 {[%clk 0:02:15]} 12. Bh3 {[%clk 0:02:34]}  Nc5 {[%clk 0:02:08]} 13. Bxc8 {[%clk 0:02:23]}  Rxc8 {[%clk 0:02:09]} 14. h4 {[%clk 0:02:22]}  Ne6 {[%clk 0:01:59]} 15. h5 {[%clk 0:02:18]}  a5 {[%clk 0:01:10]} 16. g6 {[%clk 0:02:15]}  hxg6 {[%clk 0:00:46]} 17. hxg6 {[%clk 0:02:14]}  Rxh1 {[%clk 0:00:47]} 18. Rxh1 {[%clk 0:02:03]}  fxg6 {[%clk 0:00:44]} 19. Qg4 {[%clk 0:01:58]}  Qf7 {[%clk 0:00:42]} 20. Rh3 {[%clk 0:01:58]}  Kd7 {[%clk 0:00:20]} 21. Kb1 {[%clk 0:01:40]}  Re8 {[%clk 0:00:16]} 22. Rf3 {[%clk 0:01:34]}  Qe7 {[%clk 0:00:14]} 23. Qxg6 {[%clk 0:01:33]}  Qh4 {[%clk 0:00:08]} 24. Rg3 {[%clk 0:01:09]}  a4 {[%clk 0:00:03]} 25. a3 {[%clk 0:01:08]}  Qh1+ {[%clk 0:00:02]} 26. Rg1 {[%clk 0:01:08]}  Qh3 {[%clk 0:00:02]} 27. Rd1+ {[%clk 0:01:08]}  Kc7 {[%clk 0:00:02]} 28. Qxe8 {[%clk 0:01:08]}  Qf3 {[%clk 0:00:01]} 29. Rd7# {[%clk 0:01:05]} 1-0


[Site "https://www.chess.com"]

[Event "Titled Tuesday Blitz November 15 Late 2022"]
[White "Khandelwal, Ankush"]
[Black "Quirke, Jeffrey"]
[WhiteFideId "413470"]
[BlackFideId "2013029"]
[WhiteElo "2271"]
[BlackElo "2244"]
[Result "1-0"]
[Round "11"]
[TimeControl "180+1"]
[Date "2022.11.16"]
[WhiteClock "0:00:54"]
[BlackClock "0:00:14"]

1. e4 {[%clk 0:03:00]}  c5 {[%clk 0:02:57]} 2. Nf3 {[%clk 0:02:59]}  Nc6 {[%clk 0:02:56]} 3. d4 {[%clk 0:03:00]}  cxd4 {[%clk 0:02:56]} 4. Nxd4 {[%clk 0:03:01]}  Nf6 {[%clk 0:02:56]} 5. Nc3 {[%clk 0:03:00]}  d6 {[%clk 0:02:56]} 6. Bg5 {[%clk 0:02:59]}  e6 {[%clk 0:02:56]} 7. Qd2 {[%clk 0:02:59]}  Bd7 {[%clk 0:02:57]} 8. O-O-O {[%clk 0:02:58]}  a6 {[%clk 0:02:57]} 9. Kb1 {[%clk 0:02:59]}  Nxd4 {[%clk 0:02:54]} 10. Qxd4 {[%clk 0:02:58]}  b5 {[%clk 0:02:53]} 11. f3 {[%clk 0:02:55]}  Be7 {[%clk 0:02:35]} 12. g4 {[%clk 0:02:52]}  Qc7 {[%clk 0:02:34]} 13. h4 {[%clk 0:02:47]}  O-O {[%clk 0:02:24]} 14. h5 {[%clk 0:02:12]}  h6 {[%clk 0:01:53]} 15. Bc1 {[%clk 0:02:10]}  Nh7 {[%clk 0:01:37]} 16. f4 {[%clk 0:02:05]}  Rfc8 {[%clk 0:01:31]} 17. g5 {[%clk 0:02:01]}  b4 {[%clk 0:01:32]} 18. gxh6 {[%clk 0:01:58]}  Bf6 {[%clk 0:01:20]} 19. e5 {[%clk 0:01:58]}  dxe5 {[%clk 0:01:14]} 20. fxe5 {[%clk 0:01:43]}  Bxe5 {[%clk 0:01:08]} 21. Qxd7 {[%clk 0:01:41]}  bxc3 {[%clk 0:01:07]} 22. b3 {[%clk 0:01:39]}  Nf6 {[%clk 0:00:39]} 23. Qxc7 {[%clk 0:01:11]}  Rxc7 {[%clk 0:00:38]} 24. hxg7 {[%clk 0:01:11]}  Ne4 {[%clk 0:00:38]} 25. Bg2 {[%clk 0:01:04]}  f5 {[%clk 0:00:34]} 26. h6 {[%clk 0:01:02]}  Kh7 {[%clk 0:00:32]} 27. Rde1 {[%clk 0:00:55]}  Bg3 {[%clk 0:00:14]} 28. Rxe4 {[%clk 0:00:54]} 1-0


[Site "https://www.chess.com"]

[Event "Titled Tuesday Blitz November 15 Late 2022"]
[White "Kleiman, Jake"]
[Black "Bilan, Danila"]
[WhiteFideId "2020041"]
[BlackFideId "24161918"]
[WhiteElo "2591"]
[BlackElo "2173"]
[Result "1-0"]
[Round "11"]
[TimeControl "180+1"]
[Date "2022.11.16"]
[WhiteClock "0:00:12"]
[BlackClock "0:00:01"]

1. e4 {[%clk 0:03:00]}  c6 {[%clk 0:02:55]} 2. Nc3 {[%clk 0:02:59]}  d5 {[%clk 0:02:55]} 3. Qe2 {[%clk 0:03:00]}  d4 {[%clk 0:02:43]} 4. Nd1 {[%clk 0:03:00]}  e5 {[%clk 0:02:41]} 5. d3 {[%clk 0:03:00]}  Bb4+ {[%clk 0:02:32]} 6. c3 {[%clk 0:02:58]}  dxc3 {[%clk 0:02:31]} 7. bxc3 {[%clk 0:02:57]}  Bc5 {[%clk 0:02:27]} 8. Nf3 {[%clk 0:02:51]}  Qc7 {[%clk 0:02:03]} 9. Rb1 {[%clk 0:02:18]}  Bg4 {[%clk 0:01:55]} 10. Ne3 {[%clk 0:02:16]}  Bh5 {[%clk 0:01:49]} 11. Nf5 {[%clk 0:02:08]}  Bf8 {[%clk 0:01:17]} 12. Ng3 {[%clk 0:01:49]}  Bg4 {[%clk 0:01:04]} 13. h3 {[%clk 0:01:47]}  Be6 {[%clk 0:01:04]} 14. Qb2 {[%clk 0:01:46]}  b6 {[%clk 0:00:52]} 15. d4 {[%clk 0:01:46]}  Nd7 {[%clk 0:00:52]} 16. Ng5 {[%clk 0:01:40]}  Qd6 {[%clk 0:00:36]} 17. Nxe6 {[%clk 0:01:30]}  Qxe6 {[%clk 0:00:36]} 18. Be2 {[%clk 0:01:26]}  Ngf6 {[%clk 0:00:34]} 19. O-O {[%clk 0:01:24]}  Bd6 {[%clk 0:00:27]} 20. Nf5 {[%clk 0:01:17]}  O-O {[%clk 0:00:27]} 21. f3 {[%clk 0:01:10]}  Bc7 {[%clk 0:00:18]} 22. Qb3 {[%clk 0:01:08]}  exd4 {[%clk 0:00:14]} 23. cxd4 {[%clk 0:01:03]}  Qxb3 {[%clk 0:00:10]} 24. axb3 {[%clk 0:01:02]}  c5 {[%clk 0:00:08]} 25. Be3 {[%clk 0:00:49]}  cxd4 {[%clk 0:00:05]} 26. Bxd4 {[%clk 0:00:50]}  Be5 {[%clk 0:00:05]} 27. Be3 {[%clk 0:00:48]}  g6 {[%clk 0:00:06]} 28. Nd4 {[%clk 0:00:46]}  Rac8 {[%clk 0:00:05]} 29. Rfc1 {[%clk 0:00:40]}  Nh5 {[%clk 0:00:04]} 30. Nc6 {[%clk 0:00:37]}  Ra8 {[%clk 0:00:04]} 31. Nxe5 {[%clk 0:00:34]}  Nxe5 {[%clk 0:00:05]} 32. f4 {[%clk 0:00:34]}  Nd7 {[%clk 0:00:04]} 33. Bxh5 {[%clk 0:00:27]}  gxh5 {[%clk 0:00:05]} 34. e5 {[%clk 0:00:26]}  Rfc8 {[%clk 0:00:04]} 35. Kf2 {[%clk 0:00:26]}  b5 {[%clk 0:00:02]} 36. Rxc8+ {[%clk 0:00:23]}  Rxc8 {[%clk 0:00:03]} 37. Bxa7 {[%clk 0:00:24]}  Rc2+ {[%clk 0:00:03]} 38. Kf3 {[%clk 0:00:24]}  Nf8 {[%clk 0:00:04]} 39. f5 {[%clk 0:00:22]}  Nd7 {[%clk 0:00:04]} 40. Bd4 {[%clk 0:00:20]}  Rd2 {[%clk 0:00:04]} 41. Ke4 {[%clk 0:00:18]}  Rxg2 {[%clk 0:00:02]} 42. Ra1 {[%clk 0:00:16]}  Nf8 {[%clk 0:00:01]} 43. Ra8 {[%clk 0:00:16]}  Kg7 {[%clk 0:00:01]} 44. e6+ {[%clk 0:00:15]}  f6 {[%clk 0:00:02]} 45. e7 {[%clk 0:00:13]}  Re2+ {[%clk 0:00:01]} 46. Be3 {[%clk 0:00:13]}  Nd7 {[%clk 0:00:01]} 47. e8=Q {[%clk 0:00:12]} 1-0


[Site "https://www.chess.com"]

[Event "Titled Tuesday Blitz November 15 Late 2022"]
[White "Madaminov, Mukhiddin"]
[Black "Deac, Bogdan-Daniel"]
[WhiteFideId "14210703"]
[BlackFideId "1226380"]
[WhiteElo "2341"]
[BlackElo "2648"]
[Result "0-1"]
[Round "11"]
[TimeControl "180+1"]
[Date "2022.11.15"]
[WhiteClock "0:00:03"]
[BlackClock "0:00:23"]

1. d4 {[%clk 0:03:00]}  Nf6 {[%clk 0:02:59]} 2. Nc3 {[%clk 0:02:57]}  d5 {[%clk 0:02:59]} 3. Bf4 {[%clk 0:02:56]}  c5 {[%clk 0:03:00]} 4. e4 {[%clk 0:02:56]}  Nxe4 {[%clk 0:02:58]} 5. Nxe4 {[%clk 0:02:56]}  dxe4 {[%clk 0:02:58]} 6. dxc5 {[%clk 0:02:56]}  Qa5+ {[%clk 0:02:58]} 7. c3 {[%clk 0:02:57]}  Qxc5 {[%clk 0:02:58]} 8. Qa4+ {[%clk 0:02:57]}  Nc6 {[%clk 0:02:59]} 9. Qxe4 {[%clk 0:02:58]}  e5 {[%clk 0:02:59]} 10. Be3 {[%clk 0:02:35]}  Qd6 {[%clk 0:02:53]} 11. Nf3 {[%clk 0:02:30]}  Qg6 {[%clk 0:02:52]} 12. Qa4 {[%clk 0:02:05]}  Bd6 {[%clk 0:02:45]} 13. O-O-O {[%clk 0:02:03]}  O-O {[%clk 0:02:44]} 14. Bd3 {[%clk 0:02:04]}  f5 {[%clk 0:02:44]} 15. Ng5 {[%clk 0:01:55]}  Be7 {[%clk 0:02:37]} 16. h4 {[%clk 0:01:53]}  h6 {[%clk 0:02:37]} 17. Bc4+ {[%clk 0:01:41]}  Kh8 {[%clk 0:02:32]} 18. g3 {[%clk 0:01:34]}  f4 {[%clk 0:02:26]} 19. gxf4 {[%clk 0:01:31]}  exf4 {[%clk 0:02:26]} 20. Bd4 {[%clk 0:01:11]}  Nxd4 {[%clk 0:02:24]} 21. Rxd4 {[%clk 0:01:11]}  f3 {[%clk 0:02:17]} 22. Nf7+ {[%clk 0:00:58]}  Kh7 {[%clk 0:02:16]} 23. h5 {[%clk 0:00:54]}  Qf6 {[%clk 0:02:12]} 24. Re1 {[%clk 0:00:42]}  Rxf7 {[%clk 0:01:59]} 25. Qe8 {[%clk 0:00:36]}  Qg5+ {[%clk 0:01:14]} 26. Kd1 {[%clk 0:00:33]}  Rf8 {[%clk 0:00:35]} 27. Qxe7 {[%clk 0:00:28]}  Bf5 {[%clk 0:00:35]} 28. Re5 {[%clk 0:00:20]}  Qg1+ {[%clk 0:00:32]} 29. Re1 {[%clk 0:00:07]}  Qxf2 {[%clk 0:00:32]} 30. Rd2 {[%clk 0:00:08]}  Rad8 {[%clk 0:00:24]} 31. Bd5 {[%clk 0:00:03]}  Rxd5 {[%clk 0:00:23]} 0-1


[Site "https://www.chess.com"]